fUSD/lending_fUSD_20260530
["ID","MTS","AMOUNT","RATE_DAILY","PERIOD"]
[423429367,1780109444000,-4297.31,0.00014999,2]
[423429365,1780109444000,-4297.31,0.00014999,2]
[423429366,1780109444000,-4297.31,0.00014999,2]
[423429371,1780109444000,-675.64498993,0.00014999,2]
[423429370,1780109444000,-20234.7146233,0.00015,2]
[423429369,1780109444000,-85847.30505285,0.00015,2]
[423429380,1780109445000,-4297.31,0.00014999,2]
[423429377,1780109445000,-409.97999999,0.00013061,2]
[423429376,1780109445000,-522.02000001,0.00013061,2]
[423429379,1780109445000,-1634.01574246,0.00014999,2]
[423429378,1780109445000,-987.64926761,0.00014999,2]
[423429384,1780109445000,-1460.03731472,0.00014999,2]
[423429382,1780109445000,-1955.42353572,0.00014999,2]
[423429386,1780109445000,-1738.44831125,0.00014999,2]
[423429385,1780109445000,-644.1737403,0.00014999,2]
[423429383,1780109445000,-2341.88646428,0.00014999,2]
[423429381,1780109445000,-4297.31,0.00014999,2]
[423429389,1780109446000,-4297.31,0.00014999,2]
[423429390,1780109446000,-4163.54609706,0.00014999,2]
[423429388,1780109446000,-4297.31,0.00014999,2]
[423429387,1780109446000,-454.65063373,0.00014999,2]
[423429396,1780109448000,-250.78020592,0.00015,2]
[423429397,1780109448000,-2466.90443037,0.00015,2]
[423429399,1780109448000,-7217.98835189,0.00015,2]
[423429398,1780109448000,-70840.96865501,0.00015,2]
[423429404,1780109448000,-4937.54442818,0.00015,2]
[423429401,1780109448000,-610.04,0.00015,2]
[423429395,1780109448000,-133.86979408,0.00014999,2]
[423429403,1780109448000,-2196.5771902,0.00015,2]
[423429400,1780109448000,-201337.88305522,0.00015,2]
[423429405,1780109448000,-663.7042298,0.00015,2]
[423429406,1780109448000,-3713.08295613,0.00015,2]
[423429407,1780109448000,-51175.00964328,0.00015,2]
[423429408,1780109448000,-1243.81132961,0.00015,2]
[423429402,1780109448000,-400.0,0.00015,2]
[423429409,1780109449000,-662.22765199,0.00015,2]
[423429410,1780109544000,-642.63984363,8.288e-05,2]
[423429412,1780109567000,-193.57765637,8.288e-05,2]
[423429413,1780109617000,-448.75,0.000107,2]
[423429416,1780109677000,9867.94702108,0.00028082,120]
[423429419,1780109903000,332.7817675,0.00028,120]
[423429423,1780110115000,162.0,0.00028,120]
[423429427,1780110164000,-403.87,0.000107,2]
[423429432,1780110450000,-363.49,0.000107,2]
[423429434,1780110540000,1000.0,0.00028081,120]
[423429499,1780110638000,-1631.64425966,0.00012875,2]
[423429493,1780110638000,-500.0,0.00011753,2]
[423429492,1780110638000,-327.14,0.000107,2]
[423429495,1780110638000,-442.39603552,0.00012717,2]
[423429494,1780110638000,-150.0,0.00012669,2]
[423429496,1780110638000,-283.31986119,0.00012717,2]
[423429497,1780110638000,-274.28410329,0.00012717,2]
[423429498,1780110638000,-368.35574034,0.00012875,2]
[423429501,1780110638000,-1446.4,0.00012942,2]
[423429508,1780110638000,-525.0,0.00013061,2]
[423429503,1780110638000,-150.0,0.00013061,2]
[423429502,1780110638000,-1654.38,0.00012981,2]
[423429504,1780110638000,-150.987,0.00013061,2]
[423429505,1780110638000,-1356.0,0.00013061,2]
[423429510,1780110638000,-1226.0,0.00013145,2]
[423429507,1780110638000,-3550.0,0.00013061,2]
[423429509,1780110638000,-1272.0,0.00013061,2]
[423429506,1780110638000,-928.0,0.00013061,2]
[423429500,1780110638000,-14536.07,0.00012937,2]
[423429511,1780110638000,-418.0,0.00013145,2]
[423429548,1780110639000,-803.0,0.00013425,2]
[423429554,1780110639000,-803.0,0.00013425,2]
[423429553,1780110639000,-150.0,0.00013425,2]
[423429551,1780110639000,-150.0,0.00013425,2]
[423429544,1780110639000,-500.0,0.00013425,2]
[423429549,1780110639000,-150.0,0.00013425,2]
[423429547,1780110639000,-150.0,0.00013425,2]
[423429546,1780110639000,-647.02537506,0.00013425,2]
[423429545,1780110639000,-500.0,0.00013425,2]
[423429550,1780110639000,-803.0,0.00013425,2]
[423429552,1780110639000,-803.0,0.00013425,2]
[423429563,1780110639000,-803.0,0.00013425,2]
[423429560,1780110639000,-500.0,0.00013425,2]
[423429561,1780110639000,-803.0,0.00013425,2]
[423429541,1780110639000,-500.0,0.00013425,2]
[423429562,1780110639000,-500.0,0.00013425,2]
[423429565,1780110639000,-803.0,0.00013425,2]
[423429566,1780110639000,-500.0,0.00013425,2]
[423429564,1780110639000,-500.0,0.00013425,2]
[423429568,1780110639000,-500.0,0.00013425,2]
[423429571,1780110639000,-803.0,0.00013425,2]
[423429567,1780110639000,-803.0,0.00013425,2]
[423429569,1780110639000,-803.0,0.00013425,2]
[423429570,1780110639000,-500.0,0.00013425,2]
[423429557,1780110639000,-195.43033859,0.00013425,2]
[423429542,1780110639000,-500.0,0.00013425,2]
[423429536,1780110639000,-500.0,0.00013425,2]
[423429537,1780110639000,-500.0,0.00013425,2]
[423429572,1780110639000,-500.0,0.00013425,2]
[423429512,1780110639000,-3638.0,0.00013145,2]
[423429513,1780110639000,-150.0,0.00013151,2]
[423429516,1780110639000,-1138.53,0.00013156,2]
[423429514,1780110639000,-150.0,0.00013151,2]
[423429518,1780110639000,-150.0,0.00013162,2]
[423429521,1780110639000,-2623.402,0.00013327,2]
[423429520,1780110639000,-614897.5958,0.00013325,2]
[423429517,1780110639000,-150.0,0.00013161,2]
[423429515,1780110639000,-174.37069545,0.00013151,2]
[423429519,1780110639000,-967.78,0.000132,2]
[423429522,1780110639000,-207.815,0.00013327,2]
[423429540,1780110639000,-500.0,0.00013425,2]
[423429526,1780110639000,-150.0,0.00013425,2]
[423429527,1780110639000,-203.03688608,0.00013425,2]
[423429525,1780110639000,-150.0,0.00013425,2]
[423429524,1780110639000,-564.70380702,0.00013425,2]
[423429528,1780110639000,-275.39800743,0.00013425,2]
[423429529,1780110639000,-500.0,0.00013425,2]
[423429531,1780110639000,-500.0,0.00013425,2]
[423429533,1780110639000,-500.0,0.00013425,2]
[423429532,1780110639000,-500.0,0.00013425,2]
[423429534,1780110639000,-500.0,0.00013425,2]
[423429535,1780110639000,-500.0,0.00013425,2]
[423429538,1780110639000,-500.0,0.00013425,2]
[423429539,1780110639000,-500.0,0.00013425,2]
[423429523,1780110639000,-500.0,0.00013425,2]
[423429573,1780110639000,-803.0,0.00013425,2]
[423429591,1780110639000,-342.402671,0.00013505,2]
[423429579,1780110639000,-803.0,0.00013425,2]
[423429600,1780110639000,-500.0,0.00013598,7]
[423429604,1780110639000,-29052.98,0.00013608,2]
[423429610,1780110639000,-500.0,0.00013698,2]
[423429620,1780110639000,-500.0,0.00013698,2]
[423429609,1780110639000,-500.0,0.00013698,2]
[423429611,1780110639000,-500.0,0.00013698,2]
[423429617,1780110639000,-500.0,0.00013698,2]
[423429613,1780110639000,-500.0,0.00013698,2]
[423429615,1780110639000,-500.0,0.00013698,2]
[423429614,1780110639000,-500.0,0.00013698,2]
[423429612,1780110639000,-500.0,0.00013698,2]
[423429618,1780110639000,-500.0,0.00013698,2]
[423429619,1780110639000,-500.0,0.00013698,2]
[423429622,1780110639000,-500.0,0.00013698,2]
[423429621,1780110639000,-500.0,0.00013698,2]
[423429623,1780110639000,-500.0,0.00013698,2]
[423429627,1780110639000,-500.0,0.00013698,2]
[423429631,1780110639000,-548.91,0.00013698,2]
[423429630,1780110639000,-410.30161227,0.00013698,2]
[423429624,1780110639000,-500.0,0.00013698,2]
[423429626,1780110639000,-500.0,0.00013698,2]
[423429629,1780110639000,-500.0,0.00013698,2]
[423429625,1780110639000,-500.0,0.00013698,2]
[423429628,1780110639000,-500.0,0.00013698,2]
[423429574,1780110639000,-361.94203136,0.00013425,2]
[423429603,1780110639000,-693.2,0.00013608,2]
[423429607,1780110639000,-500.0,0.00013698,2]
[423429616,1780110639000,-500.0,0.00013698,2]
[423429598,1780110639000,-500.0,0.00013598,5]
[423429575,1780110639000,-803.0,0.00013425,2]
[423429608,1780110639000,-500.0,0.00013698,2]
[423429578,1780110639000,-803.0,0.00013425,2]
[423429577,1780110639000,-803.0,0.00013425,2]
[423429576,1780110639000,-803.0,0.00013425,2]
[423429580,1780110639000,-803.0,0.00013425,2]
[423429583,1780110639000,-803.0,0.00013425,2]
[423429582,1780110639000,-803.0,0.00013425,2]
[423429584,1780110639000,-803.0,0.00013425,2]
[423429586,1780110639000,-803.0,0.00013425,2]
[423429585,1780110639000,-803.0,0.00013425,2]
[423429588,1780110639000,-552.31,0.00013433,2]
[423429587,1780110639000,-816.25368782,0.00013425,2]
[423429581,1780110639000,-803.0,0.00013425,2]
[423429606,1780110639000,-3728.15324182,0.0001366,2]
[423429605,1780110639000,-342.40267091,0.0001366,2]
[423429592,1780110639000,-3728.15324186,0.00013505,2]
[423429601,1780110639000,-400.0,0.00013599,2]
[423429602,1780110639000,-200.0,0.00013605,2]
[423429599,1780110639000,-500.0,0.00013598,6]
[423429596,1780110639000,-500.0,0.00013598,3]
[423429597,1780110639000,-500.0,0.00013598,4]
[423429590,1780110639000,-161.13174756,0.00013499,2]
[423429594,1780110639000,-150.0,0.00013598,2]
[423429595,1780110639000,-500.0,0.00013598,2]
[423429589,1780110639000,-2500.0,0.00013499,2]
[423429593,1780110639000,-190.8964635,0.00013505,2]
[423429670,1780110640000,-1462.0,0.00013699,2]
[423429672,1780110640000,-1462.0,0.00013699,2]
[423429675,1780110640000,-1462.0,0.00013699,2]
[423429673,1780110640000,-1462.0,0.00013699,2]
[423429665,1780110640000,-1462.0,0.00013699,2]
[423429660,1780110640000,-1309.98,0.00013698,2]
[423429666,1780110640000,-1462.0,0.00013699,2]
[423429668,1780110640000,-1462.0,0.00013699,2]
[423429664,1780110640000,-1462.0,0.00013699,2]
[423429663,1780110640000,-1462.0,0.00013699,2]
[423429676,1780110640000,-1462.0,0.00013699,2]
[423429669,1780110640000,-1462.0,0.00013699,2]
[423429680,1780110640000,-1462.0,0.00013699,2]
[423429688,1780110640000,-3728.15324182,0.00013815,2]
[423429678,1780110640000,-1462.0,0.00013699,2]
[423429679,1780110640000,-1462.0,0.00013699,2]
[423429674,1780110640000,-1462.0,0.00013699,2]
[423429671,1780110640000,-1462.0,0.00013699,2]
[423429692,1780110640000,-250.0,0.00014,2]
[423429682,1780110640000,-1462.0,0.00013699,2]
[423429691,1780110640000,-20101.69531695,0.0001399,2]
[423429687,1780110640000,-342.40267091,0.00013815,2]
[423429690,1780110640000,-3728.15324182,0.0001397,2]
[423429689,1780110640000,-342.40267091,0.0001397,2]
[423429681,1780110640000,-1462.0,0.00013699,2]
[423429662,1780110640000,-2500.0,0.00013699,2]
[423429677,1780110640000,-1462.0,0.00013699,2]
[423429667,1780110640000,-1462.0,0.00013699,2]
[423429632,1780110640000,-548.91,0.00013698,2]
[423429658,1780110640000,-1309.98,0.00013698,2]
[423429685,1780110640000,-1462.0,0.00013699,2]
[423429634,1780110640000,-548.91,0.00013698,2]
[423429644,1780110640000,-500.0,0.00013698,2]
[423429645,1780110640000,-500.0,0.00013698,2]
[423429633,1780110640000,-548.91,0.00013698,2]
[423429639,1780110640000,-500.0,0.00013698,2]
[423429635,1780110640000,-548.91,0.00013698,2]
[423429637,1780110640000,-500.0,0.00013698,2]
[423429636,1780110640000,-548.91,0.00013698,2]
[423429640,1780110640000,-500.0,0.00013698,2]
[423429638,1780110640000,-500.0,0.00013698,2]
[423429642,1780110640000,-500.0,0.00013698,2]
[423429661,1780110640000,-1309.98,0.00013698,2]
[423429643,1780110640000,-500.0,0.00013698,2]
[423429646,1780110640000,-500.0,0.00013698,2]
[423429647,1780110640000,-500.0,0.00013698,2]
[423429657,1780110640000,-1309.98,0.00013698,2]
[423429654,1780110640000,-581.97252477,0.00013698,2]
[423429653,1780110640000,-500.0,0.00013698,2]
[423429650,1780110640000,-500.0,0.00013698,2]
[423429649,1780110640000,-500.0,0.00013698,2]
[423429652,1780110640000,-500.0,0.00013698,2]
[423429651,1780110640000,-500.0,0.00013698,2]
[423429656,1780110640000,-1309.98,0.00013698,2]
[423429655,1780110640000,-380.90447041,0.00013698,2]
[423429659,1780110640000,-1309.98,0.00013698,2]
[423429648,1780110640000,-487.9012258,0.00013698,2]
[423429684,1780110640000,-1462.0,0.00013699,2]
[423429683,1780110640000,-1462.0,0.00013699,2]
[423429686,1780110640000,-1468.82970576,0.00013699,2]
[423429725,1780110640000,-176.47,0.000149,2]
[423429724,1780110640000,-10000.0,0.000149,2]
[423429723,1780110640000,-2000.0,0.000149,2]
[423429721,1780110640000,-311.0,0.0001488,2]
[423429738,1780110640000,-151.0,0.00014997,2]
[423429733,1780110640000,-546151.9717448,0.0001499,2]
[423429727,1780110640000,-3728.15324182,0.000149,2]
[423429730,1780110640000,-166.66,0.00014966,2]
[423429739,1780110640000,-151.0,0.00014997,2]
[423429728,1780110640000,-400.0,0.00014925,2]
[423429734,1780110640000,-148699.8398299,0.00014991,2]
[423429735,1780110640000,-500.0,0.00014995,2]
[423429722,1780110640000,-500.0,0.00014882,2]
[423429731,1780110640000,-350.0,0.00014982,2]
[423429729,1780110640000,-190.89646347,0.00014954,2]
[423429737,1780110640000,-400.0,0.00014995,2]
[423429740,1780110640000,-151.0,0.00014997,2]
[423429743,1780110640000,-500.0,0.00014999,2]
[423429744,1780110640000,-500.0,0.00014999,2]
[423429742,1780110640000,-500.0,0.00014997,2]
[423429741,1780110640000,-500.0,0.00014997,2]
[423429749,1780110640000,-500.0,0.00014999,2]
[423429747,1780110640000,-500.0,0.00014999,2]
[423429746,1780110640000,-500.0,0.00014999,2]
[423429745,1780110640000,-500.0,0.00014999,2]
[423429748,1780110640000,-498.43141485,0.00014999,2]
[423429732,1780110640000,-3809.0709129,0.0001499,2]
[423429719,1780110640000,-2000.0,0.0001486,2]
[423429736,1780110640000,-500.0,0.00014995,2]
[423429720,1780110640000,-200.0,0.00014879,2]
[423429726,1780110640000,-342.40267091,0.000149,2]
[423429695,1780110640000,-3728.15324182,0.00014125,2]
[423429696,1780110640000,-1090.39,0.00014177,2]
[423429694,1780110640000,-342.40267091,0.00014125,2]
[423429698,1780110640000,-1305.33,0.00014247,2]
[423429697,1780110640000,-1008.31,0.00014184,2]
[423429702,1780110640000,-2008.0,0.000144,2]
[423429701,1780110640000,-2318.0,0.0001436,2]
[423429700,1780110640000,-3728.15324182,0.0001428,2]
[423429703,1780110640000,-2000.0,0.000144,2]
[423429699,1780110640000,-342.40267091,0.0001428,2]
[423429704,1780110640000,-342.40267091,0.00014435,2]
[423429705,1780110640000,-3728.15324182,0.00014435,2]
[423429693,1780110640000,-163.0,0.0001404,2]
[423429715,1780110640000,-200.0,0.00014842,2]
[423429706,1780110640000,-2000.0,0.00014485,2]
[423429717,1780110640000,-2000.0,0.0001485,2]
[423429716,1780110640000,-2000.0,0.0001485,2]
[423429710,1780110640000,-3728.15324182,0.0001459,2]
[423429713,1780110640000,-3728.15324182,0.00014745,2]
[423429712,1780110640000,-342.40267091,0.00014745,2]
[423429718,1780110640000,-500.0,0.00014856,2]
[423429711,1780110640000,-166.66,0.00014658,2]
[423429709,1780110640000,-342.40267091,0.0001459,2]
[423429708,1780110640000,-1446.4,0.0001456,2]
[423429707,1780110640000,-350.0,0.00014492,2]
[423429714,1780110640000,-1000.0,0.00014842,2]
[423429795,1780110641000,-500.0,0.00014999,2]
[423429791,1780110641000,-500.0,0.00014999,2]
[423429792,1780110641000,-500.0,0.00014999,2]
[423429781,1780110641000,-500.0,0.00014999,2]
[423429788,1780110641000,-500.0,0.00014999,2]
[423429776,1780110641000,-500.0,0.00014999,2]
[423429786,1780110641000,-500.0,0.00014999,2]
[423429782,1780110641000,-500.0,0.00014999,2]
[423429779,1780110641000,-500.0,0.00014999,2]
[423429784,1780110641000,-500.0,0.00014999,2]
[423429794,1780110641000,-500.0,0.00014999,2]
[423429787,1780110641000,-500.0,0.00014999,2]
[423429789,1780110641000,-500.0,0.00014999,2]
[423429807,1780110641000,-548.91,0.00014999,2]
[423429796,1780110641000,-500.0,0.00014999,2]
[423429793,1780110641000,-500.0,0.00014999,2]
[423429790,1780110641000,-500.0,0.00014999,2]
[423429798,1780110641000,-320.89390042,0.00014999,2]
[423429808,1780110641000,-548.91,0.00014999,2]
[423429803,1780110641000,-548.91,0.00014999,2]
[423429801,1780110641000,-548.91,0.00014999,2]
[423429802,1780110641000,-548.91,0.00014999,2]
[423429800,1780110641000,-548.91,0.00014999,2]
[423429799,1780110641000,-548.91,0.00014999,2]
[423429805,1780110641000,-548.91,0.00014999,2]
[423429780,1780110641000,-500.0,0.00014999,2]
[423429797,1780110641000,-500.0,0.00014999,2]
[423429778,1780110641000,-500.0,0.00014999,2]
[423429751,1780110641000,-500.0,0.00014999,2]
[423429783,1780110641000,-564.22879675,0.00014999,2]
[423429804,1780110641000,-548.91,0.00014999,2]
[423429750,1780110641000,-174.42099601,0.00014999,2]
[423429753,1780110641000,-500.0,0.00014999,2]
[423429763,1780110641000,-500.0,0.00014999,2]
[423429754,1780110641000,-500.0,0.00014999,2]
[423429757,1780110641000,-500.0,0.00014999,2]
[423429759,1780110641000,-500.0,0.00014999,2]
[423429752,1780110641000,-500.0,0.00014999,2]
[423429756,1780110641000,-500.0,0.00014999,2]
[423429755,1780110641000,-500.0,0.00014999,2]
[423429760,1780110641000,-500.0,0.00014999,2]
[423429762,1780110641000,-500.0,0.00014999,2]
[423429761,1780110641000,-500.0,0.00014999,2]
[423429758,1780110641000,-500.0,0.00014999,2]
[423429774,1780110641000,-500.0,0.00014999,2]
[423429764,1780110641000,-500.0,0.00014999,2]
[423429765,1780110641000,-500.0,0.00014999,2]
[423429766,1780110641000,-500.0,0.00014999,2]
[423429768,1780110641000,-500.0,0.00014999,2]
[423429770,1780110641000,-500.0,0.00014999,2]
[423429769,1780110641000,-500.0,0.00014999,2]
[423429773,1780110641000,-500.0,0.00014999,2]
[423429767,1780110641000,-379.65046541,0.00014999,2]
[423429771,1780110641000,-500.0,0.00014999,2]
[423429772,1780110641000,-500.0,0.00014999,2]
[423429775,1780110641000,-500.0,0.00014999,2]
[423429777,1780110641000,-500.0,0.00014999,2]
[423429785,1780110641000,-500.0,0.00014999,2]
[423429806,1780110641000,-548.91,0.00014999,2]
[423429814,1780110641000,-548.91,0.00014999,2]
[423429811,1780110641000,-548.91,0.00014999,2]
[423429839,1780110641000,-1309.98,0.00014999,2]
[423429842,1780110641000,-1309.98,0.00014999,2]
[423429841,1780110641000,-1309.98,0.00014999,2]
[423429843,1780110641000,-1309.98,0.00014999,2]
[423429844,1780110641000,-1309.98,0.00014999,2]
[423429857,1780110641000,-4315296.8679695,0.00015,2]
[423429858,1780110641000,-1288811.30704287,0.00015,2]
[423429847,1780110641000,-1309.98,0.00014999,2]
[423429856,1780110641000,-300.0,0.00014999,2]
[423429859,1780110641000,-775.02,0.00015,2]
[423429848,1780110641000,-1309.98,0.00014999,2]
[423429849,1780110641000,-1309.98,0.00014999,2]
[423429840,1780110641000,-1309.98,0.00014999,2]
[423429851,1780110641000,-1309.98,0.00014999,2]
[423429853,1780110641000,-1309.98,0.00014999,2]
[423429855,1780110641000,-300.0,0.00014999,2]
[423429852,1780110641000,-1309.98,0.00014999,2]
[423429854,1780110641000,-1310.09525507,0.00014999,2]
[423429862,1780110641000,-1000.0,0.00015,2]
[423429866,1780110641000,-1000.0,0.00015,2]
[423429864,1780110641000,-1000.0,0.00015,2]
[423429863,1780110641000,-1000.0,0.00015,2]
[423429860,1780110641000,-1005.0783081,0.00015,2]
[423429868,1780110641000,-1000.0,0.00015,2]
[423429861,1780110641000,-1975.52032093,0.00015,2]
[423429865,1780110641000,-1000.0,0.00015,2]
[423429850,1780110641000,-1309.98,0.00014999,2]
[423429838,1780110641000,-1309.98,0.00014999,2]
[423429867,1780110641000,-1000.0,0.00015,2]
[423429837,1780110641000,-1309.98,0.00014999,2]
[423429812,1780110641000,-548.91,0.00014999,2]
[423429813,1780110641000,-548.91,0.00014999,2]
[423429817,1780110641000,-500.0,0.00014999,2]
[423429818,1780110641000,-500.0,0.00014999,2]
[423429809,1780110641000,-548.91,0.00014999,2]
[423429815,1780110641000,-548.91,0.00014999,2]
[423429810,1780110641000,-548.91,0.00014999,2]
[423429845,1780110641000,-1309.98,0.00014999,2]
[423429821,1780110641000,-500.0,0.00014999,9]
[423429816,1780110641000,-549.09183176,0.00014999,2]
[423429820,1780110641000,-500.0,0.00014999,8]
[423429833,1780110641000,-500.0,0.00014999,21]
[423429822,1780110641000,-500.0,0.00014999,10]
[423429819,1780110641000,-512.54439461,0.00014999,2]
[423429825,1780110641000,-500.0,0.00014999,13]
[423429846,1780110641000,-1309.98,0.00014999,2]
[423429824,1780110641000,-500.0,0.00014999,12]
[423429834,1780110641000,-500.0,0.00014999,21]
[423429836,1780110641000,-338.9668459,0.00014999,2]
[423429829,1780110641000,-500.0,0.00014999,17]
[423429827,1780110641000,-500.0,0.00014999,15]
[423429835,1780110641000,-470.11392164,0.00014999,21]
[423429826,1780110641000,-500.0,0.00014999,14]
[423429830,1780110641000,-500.0,0.00014999,18]
[423429832,1780110641000,-500.0,0.00014999,20]
[423429828,1780110641000,-500.0,0.00014999,16]
[423429823,1780110641000,-500.0,0.00014999,11]
[423429831,1780110641000,-500.0,0.00014999,19]
[423429906,1780110642000,-384.0,0.00015518,2]
[423429911,1780110642000,-152.0,0.00015715,7]
[423429909,1780110642000,-1975.52032093,0.000156,2]
[423429907,1780110642000,-1206.0,0.00015533,2]
[423429903,1780110642000,-150.40601128,0.00015435,2]
[423429900,1780110642000,-166.66,0.00015275,2]
[423429902,1780110642000,-500.0,0.00015404,2]
[423429905,1780110642000,-1975.52032093,0.000155,2]
[423429899,1780110642000,-152.0,0.00015238,5]
[423429901,1780110642000,-1975.52032093,0.000153,2]
[423429904,1780110642000,-152.0,0.00015476,6]
[423429912,1780110642000,-350.0,0.00015722,2]
[423429924,1780110642000,-2000.0,0.00015734,2]
[423429913,1780110642000,-300.0,0.00015733,2]
[423429916,1780110642000,-2000.0,0.00015734,2]
[423429914,1780110642000,-2000.0,0.00015734,2]
[423429915,1780110642000,-2000.0,0.00015734,2]
[423429917,1780110642000,-2000.0,0.00015734,2]
[423429918,1780110642000,-2000.0,0.00015734,2]
[423429919,1780110642000,-2000.0,0.00015734,2]
[423429921,1780110642000,-1593.81,0.00015734,2]
[423429931,1780110642000,-772.0,0.000158,2]
[423429920,1780110642000,-2000.0,0.00015734,2]
[423429930,1780110642000,-928.0,0.000158,2]
[423429897,1780110642000,-8762.74,0.00015167,2]
[423429910,1780110642000,-500.0,0.00015678,2]
[423429908,1780110642000,-166.66,0.00015583,2]
[423429875,1780110642000,-2000.0,0.00015,2]
[423429894,1780110642000,-355.74445286,0.00015037,2]
[423429923,1780110642000,-2000.0,0.00015734,2]
[423429869,1780110642000,-440.49,0.00015,2]
[423429870,1780110642000,-199.59095355,0.00015,2]
[423429871,1780110642000,-150.34873257,0.00015,2]
[423429872,1780110642000,-199.59095355,0.00015,2]
[423429884,1780110642000,-639.0,0.00015,2]
[423429874,1780110642000,-2000.0,0.00015,2]
[423429882,1780110642000,-199.47454457,0.00015,2]
[423429876,1780110642000,-2000.0,0.00015,2]
[423429873,1780110642000,-150.34873257,0.00015,2]
[423429878,1780110642000,-1000.0,0.00015,2]
[423429883,1780110642000,-290.85141829,0.00015,2]
[423429898,1780110642000,-1975.52032093,0.000152,2]
[423429879,1780110642000,-1000.0,0.00015,2]
[423429880,1780110642000,-1000.0,0.00015,2]
[423429885,1780110642000,-639.0,0.00015,2]
[423429887,1780110642000,-639.0,0.00015,2]
[423429886,1780110642000,-639.0,0.00015,2]
[423429889,1780110642000,-639.0,0.00015,2]
[423429895,1780110642000,-176.77,0.00015068,2]
[423429892,1780110642000,-723.188,0.00015,2]
[423429890,1780110642000,-639.0,0.00015,2]
[423429888,1780110642000,-639.0,0.00015,2]
[423429893,1780110642000,-330.0,0.00015014,3]
[423429896,1780110642000,-500.0,0.0001513,2]
[423429891,1780110642000,-639.0,0.00015,2]
[423429881,1780110642000,-448.14641804,0.00015,2]
[423429926,1780110642000,-2000.0,0.00015734,2]
[423429877,1780110642000,-1000.0,0.00015,2]
[423429922,1780110642000,-2000.0,0.00015734,2]
[423429957,1780110642000,-1446.4,0.00016177,2]
[423429959,1780110642000,-166.66,0.00016201,2]
[423429960,1780110642000,-552.44693857,0.00016204,2]
[423429961,1780110642000,-200.43026773,0.00016226,2]
[423429963,1780110642000,-775.02,0.000164,2]
[423429964,1780110642000,-190.89646347,0.00016404,2]
[423429962,1780110642000,-1206.0,0.00016355,2]
[423429965,1780110642000,-552.44693857,0.00016431,2]
[423429968,1780110642000,-239.43289348,0.00016438,2]
[423429979,1780110642000,-500.0,0.00016438,2]
[423429984,1780110642000,-500.0,0.00016438,2]
[423429982,1780110642000,-500.0,0.00016438,2]
[423429958,1780110642000,-152.0,0.00016192,9]
[423429994,1780110642000,-500.0,0.00016438,2]
[423429975,1780110642000,-500.0,0.00016438,2]
[423429969,1780110642000,-500.0,0.00016438,2]
[423429971,1780110642000,-500.0,0.00016438,2]
[423429970,1780110642000,-500.0,0.00016438,2]
[423429987,1780110642000,-500.0,0.00016438,2]
[423429989,1780110642000,-500.0,0.00016438,2]
[423429992,1780110642000,-500.0,0.00016438,2]
[423429990,1780110642000,-500.0,0.00016438,2]
[423429995,1780110642000,-500.0,0.00016438,2]
[423429996,1780110642000,-500.0,0.00016438,2]
[423429988,1780110642000,-500.0,0.00016438,2]
[423429925,1780110642000,-497.42,0.00015734,2]